Cogmind - Beta 16 @@@ ROGUE MODE // 2025.11.02 @ 19:21:24 Player: Cameron Result: Destroyed by B-75 Beast with Magnetic Acceleration Cannon Performance ------------- Evolutions (2) 1000 Regions Visited (8) 1600 Robots Destroyed (27) 135 Value Destroyed (878) 878 Prototype IDs (29) 580 Alien Tech Used (0) 0 Bonus (1385) 1385 TOTAL SCORE: 5578 Bonus ------- Follower Combat Kills 185 Entered Garrisons 400 Used RIF Installer 500 Aligned with FarCom 300 Cogmind --------- Core Integrity 0/550 Matter 300/300 Energy 51/100 System Corruption 0% Temperature Cool (27) Movement Core (50) Location -8/Garrison Parts ------- > --- POWER (1) -------- (None) > --- PROPULSION (4) --- (None) > --- UTILITY (4) ------ (None) > --- WEAPON (2) ------- (None) > --- INVENTORY (5) ---- Flight Unit ECM Suite Reaction Control System Hardened Medium Armor Plating Beam Rifle Peak State ------------ > --- POWER ------------ Light Deuterium Engine > --- PROPULSION ------- Flying Fortress v7 > --- UTILITY ---------- Scrap Suit Small Storage Unit Reaction Control System > --- WEAPON ----------- Beam Rifle Beam Rifle > --- INVENTORY -------- Improved Ion Engine Airjet Airjet Airjet Airjet Improved Sensor Array ECM Suite Light Assault Rifle [Rating: 52] Favorites ----------- Power Light Ion Engine Engine Light Ion Engine Propulsion Flying Fortress v7 Leg Aluminum Leg Wheel Compact Wheel Hover Unit Airjet Flight Unit Flying Fortress v7 Utility ECM Suite Device ECM Suite Storage Small Storage Unit Processor Signal Interpreter Protection Hardened Medium Armor Plating Weapon Beam Rifle Energy Gun Beam Rifle Energy Cannon Phase Cannon Ballistic Gun Light Assault Rifle Build | -11 -10 -10 -10 -9 -8 -8 -8 -8 ------- Run | Yrd Mat Min Exi Min Mat Gar Mat Gar Slots Evolved 4 | . . . . . 4 . . . Power . | . . . . . . . . . Propulsion 2 | . . . . . 2 . . . Utility 2 | . . . . . 2 . . . Weapon . | . . . . . . . . . Parts Attached 42 | 7 11 3 . . 9 7 1 4 Power 10 | 1 3 1 . . 3 . 1 1 Engine 10 | 1 3 1 . . 3 . 1 1 Core . | . . . . . . . . . Reactor . | . . . . . . . . . Propulsion 18 | 2 4 2 . . 1 7 . 2 Treads . | . . . . . . . . . Leg 2 | 2 . . . . . . . . Wheel 1 | . . . . . . . . 1 Hover 8 | . 2 2 . . . 4 . . Flight 7 | . 2 . . . 1 3 . 1 Utility 8 | 1 3 . . . 3 . . 1 Device 3 | . 1 . . . 2 . . . Storage 2 | 1 . . . . 1 . . . Processor 2 | . 2 . . . . . . . Hackware . | . . . . . . . . . Protection 1 | . . . . . . . . 1 Artifact . | . . . . . . . . . Weapon 6 | 3 1 . . . 2 . . . Energy Gun 4 | 2 . . . . 2 . . . Energy Cannon . | . . . . . . . . . Ballistic Gun 2 | 1 1 . . . . . . . Ballistic Cannon . | . . . . . . . . . Launcher . | . . . . . . . . . Special Weapon . | . . . . . . . . . Impact Weapon . | . . . . . . . . . Slashing Weapon . | . . . . . . . . . Piercing Weapon . | . . . . . . . . . Special Melee Weapon . | . . . . . . . . . Unidentified Prototypes . | . . . . . . . . . Parts Lost 18 | . . 2 . . 1 1 . 14 Power 4 | . . 1 . . 1 . . 2 Propulsion 9 | . . 1 . . . 1 . 7 Utility 2 | . . . . . . . . 2 Weapon 3 | . . . . . . . . 3 Highest Loss Streak 12 | . . 2 . . 1 1 . 12 To Critical Strikes . | . . . . . . . . . Average Backups 9 | 3 5 7 5 4 8 14 15 13 Power . | . . . 1 1 . . 1 . Propulsion 4 | 1 3 5 3 2 3 5 5 3 Utility 3 | . . . 1 1 2 8 8 6 Weapon . | 1 . . . . 1 . . 2 Tool/Special . | . . . . . . . . . Unused Backups 28 | . 8 2 4 . 3 3 2 6 Power 1 | . . 1 . . . . . . Propulsion 13 | . 6 . 4 . 1 1 1 . Utility 11 | . 1 1 . . 1 2 1 5 Weapon 3 | . 1 . . . 1 . . 1 Tool/Special . | . . . . . . . . . Average Slot Usage (%) 76 | . 95 98 100 100 62 68 88 74 Engine 10 | . 14 13 14 14 8 9 9 7 Leg 1 | . 11 . . . . . . . Hover 9 | . 4 27 28 28 . 6 36 18 Flight 6 | . 12 . . . 8 7 . 7 Device 15 | . 8 14 14 14 18 18 18 13 Storage 9 | . 7 14 14 14 9 9 9 8 Energy Gun 13 | . 27 14 14 14 15 9 4 . Ballistic Gun 6 | . . 14 14 14 2 9 12 6 Peak Build Rating 52 | 6 7 8 11 11 52 50 31 37 Average Rating 33 | 3 6 7 9 11 49 45 30 27 On Entrance 17 | . 6 7 8 11 11 50 30 30 Avg Prop Armor Cover (%) 2 | . . . . . . . . 2 Naked Turns 10 | . . . . . . . . 10 Heaviest Build 53 | 11 13 12 12 12 37 37 37 53 Greatest Support 50 | 20 20 12 12 12 50 50 32 32 Greatest Overweight (x) 3 | 2 1 1 . . . 1 1 3 Average Overweight (x) . | . . . . . . . . . Largest Inventory Capacity 15 | 8 8 8 8 8 15 15 15 15 Average Capacity 10 | 7 6 8 8 8 9 15 15 14 Most Carried 15 | 6 8 8 8 8 15 15 15 15 Average Carried 9 | 4 5 7 7 8 8 14 14 13 Final Capacity 15 | 8 8 8 8 8 15 15 15 5 Final Carried 15 | 4 8 8 8 8 15 15 15 5 Scrap Suit Usage (%) 48 | . . . . . 46 100 100 86 Parts Cannibalized 4 | . . . . . 1 1 2 . Class Distribution -------------------- 95% | Mutant 4% | Commander-Mutant Dominant Class ---------------- Mutant | -10/Materials Mutant | -10/Mines Mutant | -10/Exiles Mutant | -9/Mines Mutant | -8/Materials Mutant | -8/Garrison Mutant | -8/Materials Mutant | -8/Garrison Resources | -11 -10 -10 -10 -9 -8 -8 -8 -8 ----------- Run | Yrd Mat Min Exi Min Mat Gar Mat Gar Matter Collected 747 | 262 90 70 . . 138 39 55 93 Remotely . | . . . . . . . . . Salvage Created 813 | . 102 26 . . 355 170 55 105 Parts 58 | . 17 3 . . 20 8 2 8 Haulers Intercepted . | . . . . . . . . . Recyclers Shooed 1 | . 1 . . . . . . . Parts Field Recycled . | . . . . . . . . . Retrieved Matter . | . . . . . . . . . Parts Self-Destructed . | . . . . . . . . . Prevented . | . . . . . . . . . Parts Restored . | . . . . . . . . . Kills | -11 -10 -10 -10 -9 -8 -8 -8 -8 ------- Run | Yrd Mat Min Exi Min Mat Gar Mat Gar Combat Hostiles Destroyed 26 | . 6 2 . . 11 4 1 2 Guns 24 | . 6 2 . . 11 4 1 . Cannons 2 | . . . . . . . . 2 Classes Destroyed 6 | . 1 . . . 4 1 . . Watcher 1 | . . . . . 1 . . . Swarmer 13 | . 6 2 . . 4 1 . . Cutter 3 | . . . . . 3 . . . Grunt 1 | . . . . . 1 . . . Sentry 7 | . . . . . 3 2 . 2 Hunter 2 | . . . . . . 1 1 . Best Kill Streak 5 | . 3 1 . . 5 1 1 2 Combat Bots Only 4 | . 3 1 . . 4 1 1 2 Max Kills in Single Turn 1 | . 1 1 . . 1 1 1 1 Gunslinging . | . . . . . . . . . Exploded . | . . . . . . . . . Melee . | . . . . . . . . . Uniques/NPCs Destroyed . | . . . . . . . . . Combat | -11 -10 -10 -10 -9 -8 -8 -8 -8 -------- Run | Yrd Mat Min Exi Min Mat Gar Mat Gar Hostile Shots Fired 271 | . 25 33 . . 98 47 6 62 Missed 91 | . 11 11 . . 36 23 . 10 Hits 180 | . 14 22 . . 62 24 6 52 Melee 16 | . . . . . 16 . . . Projectile 164 | . 14 22 . . 46 24 6 52 AOE 2 | . . . . . 2 . . . Critical Strikes 7 | . . . . . 6 1 . . Damage Taken 3269 | . 123 175 . . 1071 370 89 1441 Core 630 | . 45 17 . . 75 53 36 404 Absorbed by Shields 11 | . . . . . . 7 . 4 Regen/Repaired (Parts) 31 | . . . . . 10 1 20 . Core Remaining (%) 87 | 100 . . . 75 . . . . Volleys Fired 108 | . 14 10 . . 47 15 4 18 Largest 2 | . 2 2 . . 2 2 1 2 Hottest 170 | . 90 60 . . 112 76 20 170 Shots Fired 195 | . 28 20 . . 80 30 4 33 Gun 174 | . 28 20 . . 80 30 4 12 Cannon 21 | . . . . . . . . 21 Launcher . | . . . . . . . . . Special . | . . . . . . . . . Kinetic 61 | . 2 10 . . 18 15 4 12 Thermal 134 | . 26 10 . . 62 15 . 21 Explosive . | . . . . . . . . . Electromagnetic . | . . . . . . . . . Robot Hit Streak 15 | . 3 3 . . 15 7 3 14 Robot Miss Streak 7 | . 4 3 . . 3 1 1 7 Penetration Max . | . . . . . . . . . Secondary Targets 5 | . 2 1 . . 2 . . . Max Gunslinging Chain 1 | . 1 1 . . 1 . . . Shots Hit Robots 125 | . 13 10 . . 61 19 3 19 Core Hits 48 | . 7 3 . . 22 7 2 7 Critical Kills . | . . . . . . . . . Critical Parts Destroyed . | . . . . . . . . . Critical Strikes 6 | . 1 . . . 4 1 . . Burn 6 | . 1 . . . 4 1 . . Melee Attacks . | . . . . . . . . . Impact . | . . . . . . . . . Slashing . | . . . . . . . . . Piercing . | . . . . . . . . . Sneak Attacks . | . . . . . . . . . Combat Hostiles . | . . . . . . . . . Follow-up Attacks . | . . . . . . . . . Damage Inflicted 1946 | . 150 84 . . 806 224 19 663 Guns 1354 | . 150 84 . . 806 224 19 71 Cannons 592 | . . . . . . . . 592 Explosions . | . . . . . . . . . Melee . | . . . . . . . . . Ramming . | . . . . . . . . . Kinetic 294 | . 13 28 . . 86 77 19 71 Thermal 1652 | . 137 56 . . 720 147 . 592 Explosive . | . . . . . . . . . Electromagnetic . | . . . . . . . . . Impact . | . . . . . . . . . Slashing . | . . . . . . . . . Piercing . | . . . . . . . . . Highest Corruption . | . . . . . . . . . Average Corruption . | . . . . . . . . . Corruption Purged . | . . . . . . . . . Corruption Blocked . | . . . . . . . . . Overload Shots . | . . . . . . . . . Overflow Damage . | . . . . . . . . . Projectiles . | . . . . . . . . . Explosions . | . . . . . . . . . Melee . | . . . . . . . . . Knockbacks . | . . . . . . . . . Impact . | . . . . . . . . . Kinetic . | . . . . . . . . . Secondary . | . . . . . . . . . Self-Inflicted Damage . | . . . . . . . . . Shots . | . . . . . . . . . Rammed . | . . . . . . . . . Targets Rammed . | . . . . . . . . . Kicked . | . . . . . . . . . Crushed . | . . . . . . . . . Highest Temperature 509 | . 184 66 . . 370 120 . 509 Average Temperature 129 | . 80 30 . . 128 47 . 259 Received Heat Transfer 576 | . 24 . . . 216 150 . 186 Effects 10 | . . . . . 5 . . 5 Shutdowns 1 | . . . . . . . . 1 Interference 7 | . . . . . 5 . . 2 Matter Decay 1 | . . . . . . . . 1 Damage (minor) 1 | . . . . . . . . 1 Siege Activations . | . . . . . . . . . Martial Activations . | . . . . . . . . . Shielding Activations . | . . . . . . . . . Robots Disrupted . | . . . . . . . . . Combat Hostiles . | . . . . . . . . . Robots Corrupted . | . . . . . . . . . Combat Hostiles . | . . . . . . . . . Parts Fried . | . . . . . . . . . Impact Corruptions . | . . . . . . . . . Robots Melted . | . . . . . . . . . Combat Hostiles . | . . . . . . . . . Parts Melted 8 | . 1 . . . 6 . 1 . Heat Transferred 3839 | . 458 125 . . 2146 444 . 666 Parts Sabotaged . | . . . . . . . . . Parts Stolen . | . . . . . . . . . Parts Stripped . | . . . . . . . . . Power Chain Reactions . | . . . . . . . . . Alert | -11 -10 -10 -10 -9 -8 -8 -8 -8 ------- Run | Yrd Mat Min Exi Min Mat Gar Mat Gar Maximum Alert Level 1 | . . . . . . 1 . . Low Security (%) 97 | 100 100 100 . 100 100 88 100 100 Level 1 2 | . . . . . . 11 . . Level 2 . | . . . . . . . . . Level 3 . | . . . . . . . . . Level 4 . | . . . . . . . . . Level 5 . | . . . . . . . . . High Security . | . . . . . . . . . Max Security . | . . . . . . . . . Peak Influence 297 | . 82 42 . . 162 297 159 140 Initial 144 | . . 22 . . . 89 144 103 Average 74 | . 35 9 . . 50 161 136 88 Influence Increases 1015 | . 173 50 . . 412 258 35 87 Destroy 0b10 Robot/C 660 | . 120 40 . . 240 160 20 80 Destroy 0b10 Robot/NC 10 | . . . . . 10 . . . Destroy Leader 102 | . 20 10 . . 52 10 10 . Allied During Kill 36 | . . . . . 1 23 5 7 Successful Hack 65 | . 18 . . . 47 . . . Anti-Garrison Action 50 | . . . . . . 50 . . Destroy Structure 2 | . . . . . 2 . . . Partial Spotted 45 | . . . . . 30 15 . . Lose Combat Pursuer 45 | . 15 . . . 30 . . . Influence Decreases 1015 | . 116 107 . . 274 99 173 246 Entered New Map 293 | . . 35 . . . 49 153 56 Time Decay 416 | . 116 52 . . 228 . 20 . Lost Part 170 | . . 20 . . 10 10 . 130 Lost Ally 136 | . . . . . 36 40 . 60 Squads Dispatched 7 | . 1 . . . 5 . 1 . Investigation 4 | . . . . . 3 . 1 . Extermination . | . . . . . . . . . Reinforcement 3 | . 1 . . . 2 . . . Assault . | . . . . . . . . . Garrison . | . . . . . . . . . Intercept . | . . . . . . . . . Searches Triggered . | . . . . . . . . . Construction Impeded . | . . . . . . . . . Haulers Reinforced . | . . . . . . . . . Active Scanning Responses . | . . . . . . . . . Cargo Convoy Interrupts . | . . . . . . . . . Stealth | -11 -10 -10 -10 -9 -8 -8 -8 -8 --------- Run | Yrd Mat Min Exi Min Mat Gar Mat Gar Distress Signals 6 | . . . . . 5 . . 1 Communications Jammed . | . . . . . . . . . Distress Signals . | . . . . . . . . . Times Spotted 72 | . 14 3 . . 26 19 3 7 Peak Tracking Total 8 | . 3 3 . . 8 6 2 6 Tactical Retreats 12 | . 1 . . . 5 6 . . ECM-based Alert Blocks 22 | . . . . . 9 13 . . Traps | -11 -10 -10 -10 -9 -8 -8 -8 -8 ------- Run | Yrd Mat Min Exi Min Mat Gar Mat Gar Traps Triggered 9 | . . . . . 1 6 1 1 Indirectly . | . . . . . . . . . Trap Hack Attempts . | . . . . . . . . . Triggered . | . . . . . . . . . Disarmed . | . . . . . . . . . Reprogrammed . | . . . . . . . . . Reused . | . . . . . . . . . Traps Extracted . | . . . . . . . . . Installed . | . . . . . . . . . Triggered . | . . . . . . . . . Machines | -11 -10 -10 -10 -9 -8 -8 -8 -8 ---------- Run | Yrd Mat Min Exi Min Mat Gar Mat Gar Machines Disabled 1 | . . . . . . 1 . . Max in Single Turn 1 | . . . . . . 1 . . Garrison Relay 1 | . . . . . . 1 . . Machines Repaired . | . . . . . . . . . Machines Dismantled . | . . . . . . . . . Machines Sabotaged . | . . . . . . . . . Overloaded Fab Kills . | . . . . . . . . . Hacking | -11 -10 -10 -10 -9 -8 -8 -8 -8 --------- Run | Yrd Mat Min Exi Min Mat Gar Mat Gar Machines Accessed 17 | . 4 . 1 1 10 . 1 . Terminals 12 | . 4 . . 1 7 . . . Fabricators . | . . . . . . . . . Repair Stations . | . . . . . . . . . Recycling Units . | . . . . . . . . . Scanalyzers 2 | . . . . . 2 . . . Garrison Access 2 | . . . . . 1 . 1 . Total Hacks 56 | . 13 . 1 4 36 . 2 . Successful 28 | . 6 . 1 . 19 . 2 . Failed 27 | . 7 . . 4 16 . . . Catastrophic 7 | . 1 . . 2 4 . . . Database Lockouts 1 | . . . . . 1 . . . Manual 22 | . 4 . 1 4 12 1 . . Terminals 43 | . 13 . . 4 26 . . . Fabricators . | . . . . . . . . . Repair Stations . | . . . . . . . . . Recycling Units . | . . . . . . . . . Scanalyzers 9 | . . . . . 9 . . . Garrison Access 3 | . . . . . 1 . 2 . Terminal Hacks 16 | . 6 . 1 . 9 . . . Robot Analysis 1 | . 1 . . . . . . . Prototype ID Bank 3 | . . . . . 3 . . . Branch Access Points 2 | . 1 . . . 1 . . . Terminal Index 3 | . 2 . . . 1 . . . Alert Level 1 | . . . . . 1 . . . Locate Traps 2 | . 1 . . . 1 . . . Dispatch Records 1 | . . . . . 1 . . . Registered Components 1 | . 1 . . . . . . . Zone Layout 1 | . . . . . 1 . . . Proto ID Catalog 1 | . . . 1 . . . . . Fabricator Hacks . | . . . . . . . . . Repair Station Hacks . | . . . . . . . . . Recycling Unit Hacks . | . . . . . . . . . Scanalyzer 8 | . . . . . 8 . . . Insert Component 2 | . . . . . 2 . . . Analyze 3 | . . . . . 3 . . . Retrieve Study 3 | . . . . . 3 . . . Garrison Access Hacks 3 | . . . . . 1 . 2 . Unlock Access 2 | . . . . . 1 . 1 . Coupler Status 1 | . . . . . . . 1 . Unauthorized Hacks 1 | . . . . . 1 . . . Terminals 1 | . . . . . 1 . . . Assimilate 1 | . . . . . 1 . . . Fabricators . | . . . . . . . . . Repair Stations . | . . . . . . . . . Recycling Units . | . . . . . . . . . Scanalyzers . | . . . . . . . . . Garrison Access . | . . . . . . . . . Data Cores Recovered . | . . . . . . . . . Used . | . . . . . . . . . Hacking Detections 13 | . 4 . . 1 7 . 1 . Full Trace Events 4 | . 1 . . . 3 . . . Feedback Events . | . . . . . . . . . Feedback Blocked . | . . . . . . . . . Robot Schematics Acquired . | . . . . . . . . . Robots Built . | . . . . . . . . . Authchips . | . . . . . . . . . Time . | . . . . . . . . . Total Robot Build Rating . | . . . . . . . . . Part Schematics Acquired 2 | . . . . . 2 . . . Parts Built . | . . . . . . . . . Authchips . | . . . . . . . . . Time . | . . . . . . . . . Total Part Build Rating . | . . . . . . . . . Part Studies Acquired 3 | . . . . . 3 . . . Parts Repaired . | . . . . . . . . . Time . | . . . . . . . . . Parts Recycled . | . . . . . . . . . Recycled Matter . | . . . . . . . . . Retrieved Matter . | . . . . . . . . . Retrieved Components . | . . . . . . . . . Parts Scanalyzed 2 | . . . . . 2 . . . Part Schematics Acquired 2 | . . . . . 2 . . . Parts Damaged . | . . . . . . . . . Bothacking | -11 -10 -10 -10 -9 -8 -8 -8 -8 ------------ Run | Yrd Mat Min Exi Min Mat Gar Mat Gar Used RIF Installer 1 | . . . . . . 1 . . Robots Hacked . | . . . . . . . . . Non-combat . | . . . . . . . . . Combat . | . . . . . . . . . Robot Hacks Applied . | . . . . . . . . . Relay Couplers Released 3 | . . . . . . 3 . . Machine Destruction 3 | . . . . . . 3 . . Fabnet Peak Effective % . | . . . . . . . . . Robots Rewired 6 | . . . . . . 6 . . Allies Hacked . | . . . . . . . . . Hacks Repelled . | . . . . . . . . . Allies | -11 -10 -10 -10 -9 -8 -8 -8 -8 -------- Run | Yrd Mat Min Exi Min Mat Gar Mat Gar Total Allies 10 | . . 3 . . 1 6 . . Largest Group 5 | . . 3 3 3 3 5 3 3 Highest-Rated Group 73 | . . 40 40 40 40 73 45 45 Highest-Rated Ally 26 | . . 16 16 16 26 15 15 15 Total Orders . | . . . . . . . . . Ally Attacks 47 | . . . . . 14 19 4 10 Total Damage 764 | . . . . . 173 251 86 254 Kills 8 | . . . . . 2 4 . 2 Allies Corrupted . | . . . . . . . . . Allies Melted . | . . . . . . . . . Intel | -11 -10 -10 -10 -9 -8 -8 -8 -8 ------- Run | Yrd Mat Min Exi Min Mat Gar Mat Gar Active Infowar (turns) 1774 | . 91 266 153 18 526 565 56 99 ECM 1774 | . 91 266 153 18 526 565 56 99 Robot Analysis Total 1 | . 1 . . . . . . . Derelict Logs Recovered 1 | . . 1 . . . . . . Drone Launches . | . . . . . . . . . Drone Recoveries . | . . . . . . . . . Exploration | -11 -10 -10 -10 -9 -8 -8 -8 -8 ------------- Run | Yrd Mat Min Exi Min Mat Gar Mat Gar Turns Passed 2434 | 55 281 266 153 18 874 565 56 166 Spaces Moved 2378 | 36 295 335 211 23 766 545 45 122 Core 36 | 14 . . . . . . . 22 Treads . | . . . . . . . . . Legs 83 | 22 61 . . . . . . . Wheels 6 | . . . . . . . . 6 Hover 796 | . 43 335 211 23 . 45 45 94 Flight 1457 | . 191 . . . 766 500 . . Fastest Speed 37 | 50 37 56 56 56 50 50 48 48 Average Speed 55 | 112 57 57 56 56 50 54 98 57 Slowest Speed 176 | 150 120 120 56 56 50 108 108 176 Overloaded Moves . | . . . . . . . . . Propulsion Burnouts . | . . . . . . . . . Robots Hopped 11 | . . . . . 9 2 . . Potential Cave-ins . | . . . . . . . . . Cave-ins Triggered . | . . . . . . . . . Exploration Rate (%) 40 | 3 58 91 61 8 68 52 8 14 Regions Visited 8 Branch Regions 3 Pre-discovered Areas . | . . . . . . . . . Known Exits Taken 3 | . 1 . . . 1 . 1 . Unknown Exits Taken 4 | 1 . 1 1 1 . . . . Scrap Searched 2 | . . 1 . 1 . . . . Spaces Dug . | . . . . . . . . . Terrain Destroyed . | . . . . . . . . . Melee . | . . . . . . . . . Projectile . | . . . . . . . . . AOE . | . . . . . . . . . Terrain Rammed . | . . . . . . . . . Walls Destroyed . | . . . . . . . . . Machines Disabled . | . . . . . . . . . Actions | -11 -10 -10 -10 -9 -8 -8 -8 -8 --------- Run | Yrd Mat Min Exi Min Mat Gar Mat Gar Total 3297 | 49 380 393 247 27 1177 782 56 186 Wait 537 | . 26 38 32 5 332 85 . 19 Move 2345 | 35 294 334 210 22 747 537 44 122 Hop 11 | . . . . . 9 2 . . Pick Up 58 | 6 17 4 1 . 19 8 2 1 Fast Attach 8 | 4 3 1 . . . . . . Attach 17 | 3 . 1 . . 4 4 . 5 Detach 7 | 1 2 . . . 2 . 1 1 Swap 28 | . 9 1 . . 8 3 1 6 Drop 41 | . 15 4 4 . 9 4 4 1 Fire 108 | . 14 10 . . 47 15 4 18 Melee . | . . . . . . . . . Ram . | . . . . . . . . . Kick . | . . . . . . . . . Crush . | . . . . . . . . . Escape Stasis 69 | . . . . . . 56 . 13 Rewire 68 | . . . . . . 68 . . Trap . | . . . . . . . . . Miscellaneous . | . . . . . . . . . Route ------- -11/Scrapyard -10/Materials (discovered 3 exits: [*Mat] / *Min x2) -10/Mines (discovered 2 exits: [*Mat] / *Exi) -10/Exiles -9/Mines -8/Materials (discovered 2 exits: [*Fac] / Gar) -8/Garrison (discovered 2 exits: *Mat x2) -8/Materials -8/Garrison History --------- Turn | Location | Event 21 | -11/Scrapyard | Discovered new exit (range 15) 56 | -11/Scrapyard | Entered Materials 226 | -10/Materials | Discovered new exit (range 3) 239 | -10/Materials | Discovered new exit (range 15) 241 | -10/Materials | Identified exit to Mines 337 | -10/Materials | Entered Mines 338 | -10/Mines | Assembled infested the area 344 | -10/Mines | Build established: Mutant 411 | -10/Mines | Joined a pair of Derelicts in attacking an 0b10 outpost 455 | -10/Mines | Discovered new exit (range 10) 509 | -10/Mines | Learned Materials interactive machine intel 512 | -10/Mines | Found a Scrap Suit stashed away for nefarious purposes 514 | -10/Mines | Found Scrap Suit 561 | -10/Mines | Assisted by bots powering up and referring to "LRC-V3" 577 | -10/Mines | Deemed a non-threat by the Exiles lab entrance 577 | -10/Mines | Discovered new exit (range 5) 603 | -10/Mines | Entered Exiles 603 | -10/Exiles | Accompanied by 3 allies 618 | -10/Exiles | Met 8R-AWN 628 | -10/Exiles | Met EX-HEX 644 | -10/Exiles | Met EX-BIN 651 | -10/Exiles | Aligned with FarCom system 651 | -10/Exiles | Given EX-Vault access code 665 | -10/Exiles | Opened EX-Vault 670 | -10/Exiles | Found Flying Fortress v7 681 | -10/Exiles | Warned to stay clear of 0b10 Research branches 697 | -10/Exiles | Met EX-DEC 716 | -10/Exiles | Discovered new exit (range 12) 756 | -10/Exiles | Left Exiles lab with Flying Fortress v7 756 | -10/Exiles | Entered Mines 756 | -9/Mines | Accompanied by 3 allies 760 | -9/Mines | Discovered new exit (range 8) 774 | -9/Mines | Entered Materials 774 | -8/Materials | Accompanied by 3 allies 774 | -8/Materials | Evolved 4 slots: Propulsion x2, Utility x2 775 | -8/Materials | Loaded intel: 19 interactive machine locations 857 | -8/Materials | Lost 3 allies 929 | -8/Materials | Central database locked down 1463 | -8/Materials | Discovered new exit (range 13) 1648 | -8/Materials | Identified exit to Garrison 1648 | -8/Materials | Entered Garrison 1710 | -8/Garrison | Triggered checkpoint 1734 | -8/Garrison | Triggered checkpoint 1763 | -8/Garrison | Discovered new exit (range 10) 1768 | -8/Garrison | Attempted to access garrison exit controls, blocked by remote lockdown 1788 | -8/Garrison | Triggered checkpoint 1796 | -8/Garrison | Garrison Relay disabled 1862 | -8/Garrison | Installed Relay Interface Framework 2146 | -8/Garrison | Triggered checkpoint 2162 | -8/Garrison | Triggered checkpoint 2175 | -8/Garrison | Discovered new exit (range 12) 2213 | -8/Garrison | Entered Materials 2213 | -8/Materials | Accompanied by 3 allies 2267 | -8/Materials | Identified exit to Garrison 2269 | -8/Materials | Entered Garrison 2269 | -8/Garrison | Accompanied by 3 allies 2370 | -8/Garrison | Spotted B-75 Beast 2372 | -8/Garrison | Lost 3 allies 2410 | -8/Garrison | Core integrity fell below 50% 2422 | -8/Garrison | Core integrity fell below 20% 2425 | -8/Garrison | Released all parts (2) 2435 | -8/Garrison | Destroyed by B-75 Beast with Magnetic Acceleration Cannon Last Messages --------------- 02398_ Knocked back. 02400_ Overheating: Com. Wheel damaged (-12). 02404_ Knocked back. 02404_ Lgt. Deuterium Engine destroyed. 02409_ Com. Wheel destroyed. 02410_ Overheating: Matter decay (-36). 02412_ Overheating: System interference. 02412_ Phase Cannon temporarily disabled. 02412_ Scrap Suit temporarily disabled. 02412_ Airjet destroyed. 02412_ Hrd. Medium Armor Plating destroyed. 02415_ Scrap Suit destroyed. 02415_ Airjet destroyed. 02416_ Destroyed Med. Reflective Plating. 02419_ Acquired 6 matter. 02421_ Phase Cannon destroyed. 02425_ Released Lrg. Storage Unit. 02425_ Released Cesium-ion Thruster. 02426_ Acquired 54 matter. 02429_ Acquired 29 matter. Map ----- +----------------------------------------------------+ | ?????????????????????????????????????????????????? | | ?????????????????????????????????????????????????? | | ?????????????????????????????????????????????????? | | ?????????????????????????????????????????????????? | | ?????????????????????????????????????????????????? | | ?????????????????????????????????????????????????? | | ?????????????????????????????????????????????????? | | ?????????????????????????????????????????????????? | | ?????????????????????????????????????????????????? | | ?????????????????????????????????????????????????? | | ??????????????????????????#######????????????????? | | ??????????????????????????# #????????????????? | | ??????????????????????????# ! #????????????????? | | ??????????????????????????# #????????????????? | | ??????????????????????????### #????????????????? | | ????????????????????????????# #????????????????? | | ????????????????????????????# #????????????????? | | ????????????????????????????# #????????????????? | | ????????????????????????????# #????????????????? | | ?##?????????????????????????# #???? ??????????? | | ## ###??????????????????????# #???? ??????????? | | ! !#??????????????????????# #???? ??????????? | | ! !#??????????????????????# #???? #?????????? | | ! %!###+###+################ #???? #?????????? | | /=%[[=%[*==![% + #???? ##????????? | | % =/ !!*!*[%[=%!! @ + #???? #"????????? | | ! !![##+###+################ #??s" ?????????? | | ! %%!##?????????????????????# #??s" ?????????? | | !!%%!#??????????????????????# #??s" ?????????? | | ##]###??????????????######### #???# #?????????? | | ?#+#????????????????# + #???# #?????????? | | ?# ?????????????????# + #???# #?????????? | | ?#??????????????????# ###### #???# #?????????? | | ???????????????????#] !#???# ##### #####?????? | | ???????????????????#] !#???# #?????? | | ???????????????????#] !#???# #?????? | | ???????????????????######???# ######### #?????? | | ????????????????????????????# #??????????#?????? | | ????????????????????????????# #????????????????? | | ????????????????????????????# #????????????????? | | ????????????????????????????# #????????????????? | | ????????????????????????????# #????????????????? | | ????????????????????????????# #????????????????? | | ????????????????????????????# ????????????????? | | ????????????????????????????# ???????????????? | | ????????????????????????????# ???????????????? | | ????????????????????????????#######??????????????? | | ?????????????????????????????????????????????????? | | ?????????????????????????????????????????????????? | | ?????????????????????????????????????????????????? | +----------------------------------------------------+ Best States ------------- Heat Dissipation 31 Energy Generation 14 Energy Capacity 265 Matter Stores 300 Matter Capacity 300 Sight Range 16 Terrain Scan Density 10 ECM Strength 1 Armor Coverage 225 Evasion (%) 68 Item Schematics ----------------- Airjet | -8/Materials | Scanalyzed ECM Suite | -8/Materials | Scanalyzed Robot Schematics ------------------ None Fabricated ------------ Nothing Repaired ---------- Nothing Studied --------- Beam Rifle | -8/Materials | Hacked Lgt. Ion Engine | -8/Materials | Hacked Imp. Ion Engine | -8/Materials | Hacked Alien Tech Used ----------------- None Achievements -------------- Join The Dark Side Let Me Out Of Here Challenges ------------ None Game ------ Seed BlanketBlanketChronowheel Manual? 0 Play Time 00:48:28 Cumulative 42.9 hours Start 2025.11.02 @ 18:26:36 End 2025.11.02 @ 19:21:24 Sessions 1 Manual Loads 0 Difficulty Rogue Special Mode None Game No. 39 Rogue 39 Adventurer 0 Explorer 0 Win Type - Total 0 Types 0/0/0/0/0/0/0/0/0/0 Lore% 14 Gallery% 31 Achievement% 23 Wizard Run 0 Options --------- Layout 1 ASCII 0 Keyboard 0 Movement Numpad Keybinds 0 Fullscreen 2 Font 32/SmallcapsGlow Map View 50x35 Zoom Use 0% Tactical HUD 1 Map Filters NONE Filters NONE Steam 1 RUN: c8e5a34b-a305-4823-964a-9cc1c838a063